fUSD/lending_fUSD_20250217
["ID","MTS","AMOUNT","RATE_DAILY","PERIOD"]
[353329140,1739769032453,-250.0,0.00012772,2]
[353329141,1739769032463,-300.0,0.00012878,2]
[353329142,1739769032472,-439.11,0.00012878,2]
[353329143,1739769032481,-150.0,0.00012892,2]
[353329144,1739769032492,-29999.99,0.00012893,2]
[353329145,1739769032502,-9999.99,0.00012893,2]
[353329146,1739769032511,-757.16,0.00012893,2]
[353329147,1739769032520,-1132.41,0.00012893,2]
[353329148,1739769032530,-555.65,0.00012893,2]
[353329149,1739769032540,-179.98,0.00012896,2]
[353329150,1739769032549,-834.788,0.00012982,2]
[353329151,1739769032558,-538.36,0.00013,2]
[353329152,1739769032568,-150.0,0.00013078,2]
[353329153,1739769032577,-439.11,0.00013078,2]
[353329154,1739769032586,-166.23,0.00013159,2]
[353329155,1739769032599,-775.82,0.00013425,2]
[353329156,1739769032619,-775.82,0.00013425,2]
[353329157,1739769032629,-775.82,0.00013425,2]
[353329158,1739769032639,-875.03,0.00013451,2]
[353329159,1739769032648,-439.11,0.00013451,2]
[353329160,1739769032658,-234.19,0.00013451,2]
[353329161,1739769032668,-300.23,0.00013466,2]
[353329162,1739769032678,-151.28,0.00013466,2]
[353329163,1739769032688,-300.6,0.00013466,2]
[353329164,1739769032698,-301.55,0.00013466,2]
[353329165,1739769032707,-412.66,0.00013466,2]
[353329166,1739769032716,-503.64,0.000135,2]
[353329167,1739769032727,-502.7,0.000135,2]
[353329168,1739769032738,-508.81,0.000135,2]
[353329169,1739769032747,-1157.9408655,0.00013584,2]
[353329170,1739769032758,-3097.35657234,0.00013598,2]
[353329171,1739769032767,-316.1980006,0.00013598,2]
[353329172,1739769032777,-3097.35657226,0.00013671,2]
[353329173,1739769032786,-23026.28878054,0.00013695,2]
[353329175,1739769032799,-7068.35,0.00013695,2]
[353329177,1739769032810,-13380.0,0.00013695,2]
[353329178,1739769032821,-288.31657588,0.00013695,2]
[353329179,1739769032832,-1027.61307614,0.00013695,2]
[353329188,1739769038146,-175.93,0.00012284,2]
[353329189,1739769038157,-108363.30559644,0.00013695,2]
[353329193,1739769038222,-14346.66954172,0.00013695,2]
[353329194,1739769038268,-1079.34910173,0.00013695,2]
[353329195,1739769038280,-429.1758096,0.00013695,2]
[353329196,1739769038291,-424.26157742,0.00013695,2]
[353329197,1739769038304,-10629.12965237,0.00013695,2]
[353329198,1739769038316,-428.51374405,0.00013695,2]
[353329199,1739769038327,-784.500026,0.00013695,2]
[353329200,1739769038338,-15000.0,0.00013695,2]
[353329201,1739769038353,-42692.33627575,0.00013695,2]
[353329202,1739769038370,-155713.5671892,0.00013695,2]
[353329203,1739769038384,-2715.60744209,0.00013695,2]
[353329204,1739769038395,-1147.98456,0.00013695,2]
[353329205,1739769038406,-1116.0,0.00013695,2]
[353329206,1739769038424,-291.89402713,0.00013695,2]
[353329224,1739769040397,-435.00996,0.00013695,2]
[353329225,1739769040481,-264.25,0.00013695,2]
[353329226,1739769040492,-2885.3064,0.00013695,2]
[353329227,1739769040510,-1052.0806342,0.00013695,2]
[353329228,1739769040567,-4019.19706233,0.00013695,2]
[353329229,1739769040735,-80651.73511876,0.00013695,2]
[353329230,1739769040744,-973.16,0.00013697,2]
[353329231,1739769040754,-512.77540137,0.00013698,2]
[353329232,1739769040764,-500.0,0.00013698,2]
[353329233,1739769040775,-500.0,0.00013698,2]
[353329234,1739769040786,-500.0,0.00013698,2]
[353329235,1739769040795,-500.0,0.00013698,2]
[353329236,1739769040805,-500.0,0.00013698,2]
[353329237,1739769040815,-500.0,0.00013698,2]
[353329238,1739769040824,-500.0,0.00013698,2]
[353329239,1739769040834,-507.30425037,0.00013698,2]
[353329240,1739769040843,-500.0,0.00013698,2]
[353329241,1739769040855,-500.0,0.00013698,2]
[353329242,1739769040864,-500.0,0.00013698,2]
[353329243,1739769040874,-500.0,0.00013698,2]
[353329244,1739769040884,-500.0,0.00013698,2]
[353329245,1739769040893,-500.0,0.00013698,2]
[353329246,1739769040903,-500.0,0.00013698,2]
[353329247,1739769040912,-500.0,0.00013698,2]
[353329248,1739769040921,-503.1707175,0.00013698,2]
[353329249,1739769040932,-507.16772747,0.00013698,2]
[353329250,1739769040942,-500.0,0.00013698,2]
[353329251,1739769040951,-571.91191231,0.00013698,2]
[353329252,1739769040961,-510.387901,0.00013698,2]
[353329253,1739769040970,-510.81423512,0.00013698,2]
[353329254,1739769040980,-500.0,0.00013698,2]
[353329255,1739769040989,-545.69,0.00013698,2]
[353329256,1739769040998,-500.0,0.00013698,2]
[353329257,1739769041007,-500.0,0.00013698,2]
[353329258,1739769041016,-500.0,0.00013698,2]
[353329259,1739769041026,-513.0351938,0.00013698,2]
[353329260,1739769041035,-506.94096478,0.00013698,2]
[353329261,1739769041044,-209.4774772,0.00013698,2]
[353329262,1739769041055,-500.0,0.00013698,2]
[353329263,1739769041066,-500.0,0.00013698,2]
[353329264,1739769041075,-500.0,0.00013698,2]
[353329265,1739769041085,-506.91067044,0.00013698,2]
[353329266,1739769041094,-513.428003,0.00013698,2]
[353329267,1739769041107,-500.0,0.00013698,2]
[353329268,1739769041115,-500.0,0.00013698,2]
[353329269,1739769041125,-505.60585407,0.00013698,2]
[353329270,1739769041137,-500.0,0.00013698,2]
[353329271,1739769041146,-500.0,0.00013698,2]
[353329272,1739769041156,-175.096,0.00013698,2]
[353329273,1739769041165,-500.0,0.00013698,2]
[353329274,1739769041174,-500.0,0.00013698,2]
[353329275,1739769041183,-500.0,0.00013698,2]
[353329276,1739769041192,-500.0,0.00013698,2]
[353329277,1739769041202,-500.0,0.00013698,2]
[353329278,1739769041211,-506.27705011,0.00013698,2]
[353329279,1739769041221,-500.0,0.00013698,2]
[353329280,1739769041230,-500.0,0.00013698,2]
[353329281,1739769041240,-500.0,0.00013698,2]
[353329282,1739769041250,-500.0,0.00013698,2]
[353329283,1739769041259,-500.0,0.00013698,2]
[353329284,1739769041269,-504.62633358,0.00013698,2]
[353329285,1739769041279,-500.0,0.00013698,2]
[353329286,1739769041289,-500.0,0.00013698,2]
[353329287,1739769041299,-500.0,0.00013698,2]
[353329288,1739769041309,-506.64105395,0.00013698,2]
[353329289,1739769041318,-507.97431093,0.00013698,2]
[353329290,1739769041328,-500.0,0.00013698,2]
[353329291,1739769041338,-500.0,0.00013698,2]
[353329292,1739769041349,-500.0,0.00013698,2]
[353329293,1739769041359,-500.0,0.00013698,2]
[353329294,1739769041369,-500.0,0.00013698,2]
[353329295,1739769041379,-500.0,0.00013698,2]
[353329296,1739769041389,-500.0,0.00013698,2]
[353329297,1739769041400,-500.0,0.00013698,2]
[353329298,1739769041409,-500.0,0.00013698,2]
[353329299,1739769041419,-500.0,0.00013698,2]
[353329300,1739769041429,-507.1407854,0.00013698,2]
[353329301,1739769041443,-500.0,0.00013698,2]
[353329302,1739769041453,-500.0,0.00013698,2]
[353329303,1739769041463,-500.0,0.00013698,2]
[353329304,1739769041472,-500.0,0.00013698,2]
[353329305,1739769041481,-500.0,0.00013698,2]
[353329306,1739769041491,-507.46505744,0.00013698,2]
[353329307,1739769041501,-500.0,0.00013698,2]
[353329308,1739769041511,-500.0,0.00013698,2]
[353329309,1739769041521,-464.22095968,0.00013698,2]
[353329310,1739769041531,-500.0,0.00013698,2]
[353329311,1739769041540,-507.11862495,0.00013698,2]
[353329312,1739769041550,-500.0,0.00013698,2]
[353329313,1739769041560,-556.95532106,0.00013698,2]
[353329314,1739769041569,-500.0,0.00013698,2]
[353329315,1739769041579,-500.0,0.00013698,2]
[353329316,1739769041589,-500.0,0.00013698,2]
[353329317,1739769041600,-500.0,0.00013698,2]
[353329318,1739769041610,-509.28,0.00013698,2]
[353329319,1739769041619,-500.0,0.00013698,2]
[353329320,1739769041629,-500.0,0.00013698,2]
[353329321,1739769041638,-500.0,0.00013698,2]
[353329322,1739769041647,-500.0,0.00013698,2]
[353329323,1739769041657,-500.0,0.00013698,2]
[353329324,1739769041667,-500.0,0.00013698,2]
[353329325,1739769041864,-506.9560621,0.00013698,2]
[353329326,1739769041876,-519.8,0.00013698,2]
[353329327,1739769041886,-579.31,0.00013698,2]
[353329328,1739769041896,-500.0,0.00013698,2]
[353329329,1739769041905,-520.46,0.00013698,2]
[353329330,1739769041915,-500.0,0.00013698,2]
[353329331,1739769041925,-500.0,0.00013698,2]
[353329332,1739769041935,-500.0,0.00013698,2]
[353329333,1739769041945,-500.0,0.00013698,2]
[353329334,1739769041954,-302.71374166,0.00013698,2]
[353329335,1739769041964,-492.57690478,0.00013698,2]
[353329336,1739769041974,-519.9183327,0.00013698,2]
[353329337,1739769041983,-500.0,0.00013698,2]
[353329338,1739769041993,-500.0,0.00013698,2]
[353329339,1739769042002,-500.0,0.00013698,2]
[353329340,1739769042012,-500.0,0.00013698,2]
[353329341,1739769042022,-504.51118405,0.00013698,2]
[353329342,1739769042031,-505.66433945,0.00013698,2]
[353329343,1739769042041,-500.0,0.00013698,2]
[353329344,1739769042053,-500.0,0.00013698,2]
[353329345,1739769042062,-500.0,0.00013698,2]
[353329346,1739769042072,-500.0,0.00013698,2]
[353329347,1739769042081,-500.0,0.00013698,2]
[353329348,1739769042090,-500.0,0.00013698,2]
[353329349,1739769042103,-430.02283481,0.00013698,2]
[353329350,1739769042112,-500.0,0.00013698,2]
[353329351,1739769042122,-500.0,0.00013698,2]
[353329352,1739769042131,-500.0,0.00013698,2]
[353329353,1739769042141,-505.92888613,0.00013698,2]
[353329354,1739769042150,-500.0,0.00013698,2]
[353329355,1739769042160,-500.0,0.00013698,2]
[353329356,1739769042170,-500.0,0.00013698,2]
[353329357,1739769042179,-500.0,0.00013698,2]
[353329358,1739769042188,-500.0,0.00013698,2]
[353329359,1739769042198,-509.06305942,0.00013698,2]
[353329360,1739769042207,-501.7252202,0.00013698,2]
[353329361,1739769042217,-500.0,0.00013698,2]
[353329362,1739769042227,-500.0,0.00013698,2]
[353329363,1739769042238,-500.0,0.00013698,2]
[353329364,1739769042247,-510.3544669,0.00013698,2]
[353329365,1739769042256,-500.0,0.00013698,2]
[353329366,1739769042265,-500.0,0.00013698,2]
[353329367,1739769042274,-500.0,0.00013698,2]
[353329368,1739769042283,-500.0,0.00013698,2]
[353329369,1739769042292,-501.1801333,0.00013698,2]
[353329370,1739769042302,-244.08669865,0.00013698,2]
[353329371,1739769042312,-500.0,0.00013698,2]
[353329372,1739769042322,-500.0,0.00013698,2]
[353329373,1739769042331,-500.0,0.00013698,2]
[353329374,1739769042341,-500.0,0.00013698,2]
[353329375,1739769042350,-500.0,0.00013698,2]
[353329376,1739769042360,-500.0,0.00013698,2]
[353329377,1739769042369,-500.0,0.00013698,2]
[353329378,1739769042379,-500.0,0.00013698,2]
[353329379,1739769042388,-500.0,0.00013698,2]
[353329380,1739769042398,-500.0,0.00013698,2]
[353329381,1739769042408,-500.0,0.00013698,2]
[353329382,1739769042417,-500.0,0.00013698,2]
[353329383,1739769042426,-505.04692093,0.00013698,2]
[353329384,1739769042436,-500.0,0.00013698,2]
[353329385,1739769042445,-500.0,0.00013698,2]
[353329386,1739769042455,-500.0,0.00013698,2]
[353329387,1739769042464,-500.0,0.00013698,2]
[353329388,1739769042474,-504.31025018,0.00013698,2]
[353329389,1739769042483,-507.19564254,0.00013698,2]
[353329390,1739769042493,-510.4919266,0.00013698,2]
[353329391,1739769042503,-500.0,0.00013698,2]
[353329392,1739769042513,-510.98172208,0.00013698,2]
[353329393,1739769042523,-500.0,0.00013698,2]
[353329394,1739769042532,-500.0,0.00013698,2]
[353329395,1739769042542,-507.82856228,0.00013698,2]
[353329396,1739769042551,-507.18006246,0.00013698,2]
[353329397,1739769042560,-508.22775565,0.00013698,2]
[353329398,1739769042570,-500.0,0.00013698,2]
[353329399,1739769042579,-504.88011309,0.00013698,2]
[353329400,1739769042588,-500.0,0.00013698,2]
[353329401,1739769042598,-500.0,0.00013698,2]
[353329402,1739769042609,-509.98613721,0.00013698,2]
[353329403,1739769042619,-500.0,0.00013698,2]
[353329404,1739769042628,-524.42019643,0.00013698,2]
[353329405,1739769042638,-500.0,0.00013698,2]
[353329406,1739769042647,-500.0,0.00013698,2]
[353329407,1739769042656,-500.0,0.00013698,2]
[353329408,1739769042666,-500.0,0.00013698,2]
[353329409,1739769042675,-500.0,0.00013698,2]
[353329410,1739769042684,-500.0,0.00013698,2]
[353329411,1739769042693,-500.0,0.00013698,2]
[353329412,1739769042702,-507.33779639,0.00013698,2]
[353329413,1739769042712,-505.65858572,0.00013698,2]
[353329414,1739769042721,-508.12848741,0.00013698,2]
[353329415,1739769042730,-505.38145083,0.00013698,2]
[353329416,1739769042739,-500.0,0.00013698,2]
[353329417,1739769042749,-500.0,0.00013698,2]
[353329418,1739769042758,-500.0,0.00013698,2]
[353329419,1739769042767,-500.0,0.00013698,2]
[353329420,1739769042776,-500.0,0.00013698,2]
[353329421,1739769042785,-500.0,0.00013698,2]
[353329422,1739769042795,-500.0,0.00013698,2]
[353329423,1739769042803,-500.0,0.00013698,2]
[353329424,1739769042815,-500.0,0.00013698,2]
[353329425,1739769042824,-500.0,0.00013698,2]
[353329426,1739769042834,-500.0,0.00013698,2]
[353329427,1739769042844,-500.0,0.00013698,2]
[353329428,1739769042855,-500.0,0.00013698,2]
[353329429,1739769042864,-500.0,0.00013698,2]
[353329430,1739769042874,-500.0,0.00013698,2]
[353329431,1739769042884,-500.0,0.00013698,2]
[353329432,1739769042894,-500.0,0.00013698,2]
[353329433,1739769042903,-500.0,0.00013698,2]
[353329434,1739769042913,-500.0,0.00013698,2]
[353329435,1739769042922,-500.0,0.00013698,2]
[353329436,1739769042931,-500.0,0.00013698,2]
[353329437,1739769042941,-510.36822845,0.00013698,2]
[353329438,1739769042950,-500.0,0.00013698,2]
[353329439,1739769042959,-500.0,0.00013698,2]
[353329440,1739769042968,-541.24,0.00013698,2]
[353329441,1739769042977,-500.0,0.00013698,2]
[353329442,1739769042986,-500.0,0.00013698,2]
[353329443,1739769042995,-500.0,0.00013698,2]
[353329444,1739769043004,-500.0,0.00013698,2]
[353329445,1739769043013,-500.0,0.00013698,2]
[353329446,1739769043022,-500.0,0.00013698,2]
[353329447,1739769043031,-500.0,0.00013698,2]
[353329448,1739769043040,-500.0,0.00013698,2]
[353329449,1739769043050,-500.0,0.00013698,2]
[353329450,1739769043061,-500.0,0.00013698,2]
[353329451,1739769043070,-500.0,0.00013698,2]
[353329453,1739769043079,-500.0,0.00013698,2]
[353329455,1739769043089,-500.0,0.00013698,2]
[353329456,1739769043098,-500.0,0.00013698,2]
[353329457,1739769043110,-500.0,0.00013698,2]
[353329458,1739769043119,-500.0,0.00013698,2]
[353329460,1739769043130,-500.0,0.00013698,2]
[353329462,1739769043140,-500.0,0.00013698,2]
[353329464,1739769043150,-500.0,0.00013698,2]
[353329465,1739769043159,-500.0,0.00013698,2]
[353329466,1739769043168,-500.0,0.00013698,2]
[353329467,1739769043177,-500.0,0.00013698,2]
[353329468,1739769043187,-500.0,0.00013698,2]
[353329470,1739769043196,-156.326465,0.00013698,2]
[353329472,1739769043206,-500.0,0.00013698,2]
[353329474,1739769043216,-500.0,0.00013698,2]
[353329476,1739769043226,-500.0,0.00013698,2]
[353329478,1739769043235,-500.0,0.00013698,2]
[353329481,1739769043244,-500.0,0.00013698,2]
[353329483,1739769043253,-500.0,0.00013698,2]
[353329485,1739769043263,-500.0,0.00013698,2]
[353329487,1739769043272,-500.0,0.00013698,2]
[353329489,1739769043281,-500.0,0.00013698,2]
[353329491,1739769043291,-508.10002441,0.00013698,2]
[353329493,1739769043300,-500.0,0.00013698,2]
[353329494,1739769043309,-500.0,0.00013698,2]
[353329495,1739769043318,-500.0,0.00013698,2]
[353329496,1739769043328,-500.0,0.00013698,2]
[353329497,1739769043337,-500.0,0.00013698,2]
[353329498,1739769043346,-500.0,0.00013698,2]
[353329499,1739769043358,-500.0,0.00013698,2]
[353329500,1739769043367,-512.2178475,0.00013698,2]
[353329501,1739769043376,-500.0,0.00013698,2]
[353329502,1739769043386,-511.16364501,0.00013698,2]
[353329503,1739769043396,-511.81283237,0.00013698,2]
[353329504,1739769043405,-500.0,0.00013698,2]
[353329505,1739769043414,-438.25068788,0.00013698,2]
[353329506,1739769043424,-500.0,0.00013698,2]
[353329507,1739769043433,-453.46044166,0.00013698,2]
[353329508,1739769043442,-500.0,0.00013698,2]
[353329509,1739769043451,-513.68462405,0.00013698,2]
[353329510,1739769043460,-373.420284,0.00013698,2]
[353329511,1739769043470,-171.84495426,0.00013698,2]
[353329512,1739769043480,-500.0,0.00013698,2]
[353329513,1739769043489,-519.09885836,0.00013698,2]
[353329514,1739769043499,-500.0,0.00013698,2]
[353329515,1739769043509,-500.0,0.00013698,2]
[353329516,1739769043518,-500.0,0.00013698,2]
[353329517,1739769043529,-512.34235233,0.00013698,2]
[353329518,1739769043539,-438.686602,0.00013698,2]
[353329519,1739769043551,-730.61,0.00013698,2]
[353329520,1739769043563,-523.82307566,0.00013698,2]
[353329521,1739769043783,-500.0,0.00013698,2]
[353329522,1739769043793,-163.855908,0.00013698,2]
[353329523,1739769043802,-500.0,0.00013698,2]
[353329524,1739769043812,-500.0,0.00013698,2]
[353329525,1739769043821,-500.0,0.00013698,2]
[353329526,1739769043831,-500.0,0.00013698,2]
[353329527,1739769043841,-500.0,0.00013698,2]
[353329528,1739769043850,-500.0,0.00013698,2]
[353329529,1739769043865,-500.0,0.00013698,2]
[353329530,1739769043875,-500.0,0.00013698,2]
[353329531,1739769043884,-500.0,0.00013698,2]
[353329532,1739769043893,-500.0,0.00013698,2]
[353329533,1739769043903,-500.0,0.00013698,2]
[353329534,1739769043912,-500.0,0.00013698,2]
[353329535,1739769043922,-500.0,0.00013698,2]
[353329536,1739769043931,-500.0,0.00013698,2]
[353329537,1739769043940,-500.0,0.00013698,2]
[353329538,1739769043950,-519.28,0.00013698,2]
[353329539,1739769043960,-500.0,0.00013698,2]
[353329540,1739769043969,-510.26233762,0.00013698,2]
[353329541,1739769043978,-500.0,0.00013698,2]
[353329542,1739769043988,-500.0,0.00013698,2]
[353329543,1739769043998,-500.0,0.00013698,2]
[353329544,1739769044008,-500.0,0.00013698,2]
[353329545,1739769044018,-507.81721247,0.00013698,2]
[353329546,1739769044027,-500.0,0.00013698,2]
[353329547,1739769044037,-500.0,0.00013698,2]
[353329548,1739769044046,-500.0,0.00013698,2]
[353329549,1739769044056,-557.57011433,0.00013698,2]
[353329550,1739769044069,-486.2079851,0.00013698,2]
[353329551,1739769044079,-500.0,0.00013698,2]
[353329552,1739769044088,-500.0,0.00013698,2]
[353329553,1739769044097,-500.0,0.00013698,2]
[353329554,1739769044110,-500.0,0.00013698,2]
[353329555,1739769044119,-500.0,0.00013698,2]
[353329556,1739769044129,-500.0,0.00013698,2]
[353329557,1739769044139,-500.0,0.00013698,2]
[353329558,1739769044149,-500.0,0.00013698,2]
[353329559,1739769044158,-500.0,0.00013698,2]
[353329560,1739769044168,-500.0,0.00013698,2]
[353329561,1739769044177,-500.0,0.00013698,2]
[353329562,1739769044187,-500.0,0.00013698,2]
[353329563,1739769044196,-500.0,0.00013698,2]
[353329564,1739769044205,-500.0,0.00013698,2]
[353329565,1739769044214,-500.0,0.00013698,2]
[353329566,1739769044223,-500.0,0.00013698,2]
[353329567,1739769044234,-500.0,0.00013698,2]
[353329568,1739769044243,-500.0,0.00013698,2]
[353329569,1739769044252,-514.21859432,0.00013698,2]
[353329570,1739769044262,-500.0,0.00013698,2]
[353329571,1739769044273,-500.0,0.00013698,2]
[353329572,1739769044283,-500.0,0.00013698,2]
[353329573,1739769044293,-500.0,0.00013698,2]
[353329574,1739769044303,-533.91,0.00013698,2]
[353329575,1739769044312,-218.46221291,0.00013698,2]
[353329576,1739769044322,-500.0,0.00013698,2]
[353329577,1739769044332,-500.0,0.00013698,2]
[353329578,1739769044342,-510.4366792,0.00013698,2]
[353329579,1739769044351,-500.0,0.00013698,2]
[353329580,1739769044361,-516.71782922,0.00013698,2]
[353329581,1739769044370,-500.0,0.00013698,2]
[353329582,1739769044379,-500.0,0.00013698,2]
[353329583,1739769044387,-500.0,0.00013698,2]
[353329584,1739769044396,-500.0,0.00013698,2]
[353329585,1739769044405,-500.0,0.00013698,2]
[353329586,1739769044414,-500.0,0.00013698,2]
[353329587,1739769044423,-508.55177294,0.00013698,2]
[353329588,1739769044432,-500.0,0.00013698,2]
[353329589,1739769044441,-500.0,0.00013698,2]
[353329590,1739769044450,-505.88293409,0.00013698,2]
[353329591,1739769044459,-500.0,0.00013698,2]
[353329592,1739769044468,-500.0,0.00013698,2]
[353329593,1739769044477,-500.0,0.00013698,2]
[353329594,1739769044486,-500.0,0.00013698,2]
[353329595,1739769044496,-505.04958734,0.00013698,2]
[353329596,1739769044505,-510.23761181,0.00013698,2]
[353329597,1739769044515,-504.97260242,0.00013698,2]
[353329598,1739769044524,-510.6525092,0.00013698,2]
[353329599,1739769044533,-500.0,0.00013698,2]
[353329600,1739769044542,-500.0,0.00013698,2]
[353329601,1739769044551,-500.0,0.00013698,2]
[353329602,1739769044560,-49.82471045,0.00013698,2]
[353329603,1739769045398,-384.58861326,0.00013698,2]
[353329604,1739769045423,-65.58667629,0.00013698,2]
[353329605,1739769045432,-203.65472311,0.00013698,2]
[353329606,1739769045915,-504.97,0.00013695,2]
[353329607,1739769045924,-296.34527689,0.00013698,2]
[353329608,1739769045933,-500.0,0.00013698,2]
[353329609,1739769045943,-500.0,0.00013698,2]
[353329610,1739769045951,-500.0,0.00013698,2]
[353329611,1739769045960,-500.0,0.00013698,2]
[353329612,1739769045969,-693.9,0.00013698,2]
[353329613,1739769045979,-500.0,0.00013698,2]
[353329615,1739769045988,-509.84415695,0.00013698,2]
[353329617,1739769045997,-316.49662788,0.00013698,2]
[353329619,1739769046006,-384.84021177,0.00013698,2]
[353329622,1739769046024,-115.15978823,0.00013698,2]
[353329624,1739769046033,-498.22803101,0.00013698,2]
[353329651,1739769046238,-6.06196899,0.00013698,2]
[353329653,1739769046247,-348.07842973,0.00013698,2]
[353329672,1739769046348,-207.51157027,0.00013698,2]
[353329674,1739769046360,-500.0,0.00013698,2]
[353329676,1739769046369,-12.38770763,0.00013698,2]
[353329678,1739769046381,-487.61229237,0.00013698,2]
[353329680,1739769046390,-183.18770575,0.00013698,2]
[353329683,1739769046409,-316.81229425,0.00013698,2]
[353329685,1739769046418,-500.0,0.00013698,2]
[353329687,1739769046427,-500.0,0.00013698,2]
[353329689,1739769046436,-500.0,0.00013698,2]
[353329690,1739769046445,-507.23553969,0.00013698,2]
[353329692,1739769046454,-500.0,0.00013698,2]
[353329693,1739769046463,-500.0,0.00013698,2]
[353329695,1739769046472,-500.0,0.00013698,2]
[353329697,1739769046481,-500.0,0.00013698,2]
[353329699,1739769046490,-509.83099821,0.00013698,2]
[353329701,1739769046499,-500.0,0.00013698,2]
[353329703,1739769046509,-500.0,0.00013698,2]
[353329705,1739769046518,-514.75327308,0.00013698,2]
[353329707,1739769046528,-500.0,0.00013698,2]
[353329709,1739769046537,-500.0,0.00013698,2]
[353329711,1739769046546,-500.0,0.00013698,2]
[353329713,1739769046556,-515.40138241,0.00013698,2]
[353329715,1739769046566,-504.45616024,0.00013698,2]
[353329717,1739769046576,-500.0,0.00013698,2]
[353329719,1739769046585,-500.0,0.00013698,2]
[353329721,1739769046595,-512.54,0.00013698,2]
[353329723,1739769046603,-500.0,0.00013698,2]
[353329725,1739769046614,-500.0,0.00013698,2]
[353329727,1739769046623,-500.0,0.00013698,2]
[353329729,1739769046632,-500.0,0.00013698,2]
[353329731,1739769046641,-511.57706587,0.00013698,2]
[353329732,1739769046650,-500.0,0.00013698,2]
[353329734,1739769046659,-500.0,0.00013698,2]
[353329736,1739769046668,-500.0,0.00013698,2]
[353329738,1739769046678,-500.0,0.00013698,2]
[353329740,1739769046687,-512.42973197,0.00013698,2]
[353329742,1739769046696,-500.0,0.00013698,2]
[353329744,1739769046705,-500.0,0.00013698,2]
[353329746,1739769046713,-500.0,0.00013698,2]
[353329748,1739769046723,-500.0,0.00013698,2]
[353329750,1739769046732,-500.0,0.00013698,2]
[353329752,1739769046741,-500.0,0.00013698,2]
[353329754,1739769046750,-500.0,0.00013698,2]
[353329756,1739769046759,-500.0,0.00013698,2]
[353329758,1739769046767,-352.13926341,0.00013698,2]
[353329760,1739769046776,-729.89,0.00013698,2]
[353329762,1739769046785,-500.0,0.00013698,2]
[353329764,1739769046794,-504.75254255,0.00013698,2]
[353329766,1739769046803,-500.0,0.00013698,2]
[353329768,1739769046812,-500.0,0.00013698,2]
[353329770,1739769046821,-637.87,0.00013698,2]
[353329772,1739769046831,-500.0,0.00013698,2]
[353329773,1739769046839,-508.94640765,0.00013698,2]
[353329774,1739769046848,-485.59386868,0.00013698,2]
[353329775,1739769046859,-510.99280103,0.00013698,2]
[353329776,1739769046869,-500.0,0.00013698,2]
[353329777,1739769046878,-1101.81,0.00013698,2]
[353329778,1739769046888,-500.0,0.00013698,2]
[353329779,1739769046896,-512.16383603,0.00013698,2]
[353329780,1739769046905,-1200.0,0.00013698,2]
[353329781,1739769046914,-500.0,0.00013698,2]
[353329782,1739769046923,-601.14,0.00013698,2]
[353329783,1739769046933,-500.0,0.00013698,2]
[353329784,1739769046942,-500.0,0.00013698,2]
[353329785,1739769046951,-500.0,0.00013698,2]
[353329786,1739769046960,-500.0,0.00013698,2]
[353329787,1739769046969,-500.0,0.00013698,2]